bitfinex-derivatives/quotes_BNBF0:USTF0_20250807
["timestamp","ask_amount","ask_price","bid_price","bid_amount"]
[1754592933414,0.8565042,777.71,777.08,0.85962654]
[1754592933714,0.8565042,777.7,777.08,0.85962654]
[1754592933913,0.8565042,777.69,777.08,0.85962654]
[1754592934114,0.8565042,777.68,777.08,0.85962654]
[1754592934314,0.8565042,777.67,777.08,0.85962654]
[1754592934515,1.096,777.72,777.08,0.85962654]
[1754592934815,0.85623417,777.71,777.08,0.85962654]
[1754592935118,0.85623417,777.7,777.08,0.85962654]
[1754592935315,0.85622038,777.69,777.08,0.85962654]
[1754592935515,0.85622038,777.68,777.08,0.85962654]
[1754592935713,0.85622038,777.67,777.08,0.85962654]
[1754592936013,1.096,777.72,777.07,0.85962654]
[1754592936218,0.85617989,777.71,777.07,0.85962654]
[1754592936418,0.85617989,777.7,777.08,0.85962654]
[1754592936614,0.85617989,777.69,777.08,0.85962654]
[1754592936814,0.85617989,777.68,777.07,0.85962654]
[1754592937015,0.85617989,777.67,777.07,0.85962654]
[1754592937318,1.096,777.72,777.07,0.85962654]
[1754592937518,0.85608701,777.71,777.07,0.85962654]
[1754592937717,0.85608701,777.7,777.07,0.85962654]
[1754592937916,0.85608701,777.69,777.07,0.85962654]
[1754592938120,0.85608701,777.68,777.07,0.85962654]
[1754592938420,0.85608701,777.67,777.07,0.85962654]
[1754592938621,1.096,777.72,777.07,0.85962654]
[1754592938822,0.85604776,777.71,777.07,0.85962654]
[1754592939020,0.85604776,777.7,777.07,0.85962654]
[1754592939318,0.85604776,777.69,777.07,0.85962654]
[1754592939621,0.85604776,777.68,777.1,0.85962654]
[1754592939820,0.85604776,777.67,777.12,0.85962654]
[1754592940019,0.85604776,777.66,777.13,0.85962654]
[1754592940223,0.85604776,777.65,777.13,0.85962654]
[1754592940423,0.85604776,777.64,777.13,0.85962654]
[1754592940622,0.85604776,777.63,777.13,0.85962654]
[1754592940819,1.096,777.72,777.13,0.85962654]
[1754592941024,0.85598034,777.71,777.13,0.85962654]
[1754592941221,0.85598034,777.7,777.13,0.85962654]
[1754592941425,0.85598034,777.69,777.13,0.85962654]
[1754592941623,0.85598034,777.68,777.13,0.85962654]
[1754592941922,0.85598034,777.67,777.07,0.85962654]
[1754592942126,1.096,777.72,777.08,0.85962654]
[1754592942323,0.85594547,777.71,777.08,0.85962654]
[1754592942623,0.85594547,777.7,777.08,0.85962654]
[1754592942822,0.85594547,777.69,777.08,0.85962654]
[1754592943021,0.85594547,777.68,777.08,0.85962654]
[1754592943223,1.096,777.72,777.08,0.85962654]
[1754592943422,0.85597371,777.71,777.08,0.85962654]
[1754592943725,0.85595598,777.7,777.08,0.85962654]
[1754592943921,0.85595598,777.69,777.08,0.85962654]
[1754592944225,0.85595598,777.68,777.08,0.85962654]
[1754592944421,1.096,777.72,777.08,0.85962654]
[1754592944623,0.85597056,777.71,777.08,0.85962654]
[1754592944821,0.85597056,777.7,777.08,0.85962654]
[1754592945025,0.85597056,777.69,777.08,0.85962654]
[1754592945226,0.85597056,777.68,777.08,0.85962654]
[1754592945421,0.85599132,777.67,777.08,0.85962654]
[1754592945622,1.096,777.72,777.08,0.85962654]
[1754592945824,0.85599141,777.71,777.08,0.85962654]
[1754592946027,0.85599141,777.7,777.08,0.85962654]
[1754592946228,0.85599141,777.69,777.08,0.85962654]
[1754592946528,0.85599141,777.68,777.08,0.85962654]
[1754592946728,1.096,777.72,777.08,0.85962654]
[1754592947025,0.856025,777.71,777.08,0.85962654]
[1754592947227,0.856025,777.7,777.08,0.85962654]
[1754592947427,1.096,777.72,777.08,0.85962654]
[1754592947428,0.856025,777.69,777.08,0.85962654]
[1754592947624,1.096,777.72,777.08,0.85962654]
[1754592947625,0.856025,777.68,777.08,0.85962654]
[1754592947824,0.856025,777.67,777.08,0.85962654]
[1754592948023,1.096,777.72,777.08,0.85962654]
[1754592948229,0.85606572,777.71,777.09,0.85962654]
[1754592948427,0.85606572,777.7,777.08,0.85962654]
[1754592948628,0.85606572,777.69,777.08,0.85962654]
[1754592948828,0.85606572,777.68,777.08,0.85962654]
[1754592949127,0.85606572,777.67,777.08,0.85962654]
[1754592949324,1.096,777.72,777.09,0.85962654]
[1754592949527,0.85617048,777.71,777.09,0.85962654]
[1754592949725,1.096,777.72,777.09,0.85962654]
[1754592951733,1.096,777.72,776.62,0.22382372]
[1754592951734,1.096,777.72,777.12,0.85962654]
[1754592955528,1.096,777.72,776.62,0.22382372]
[1754592955529,1.096,777.72,777.13,0.85962654]
[1754592956333,1.096,777.72,777.12,0.85962654]
[1754592956930,1.096,777.72,777.14,0.85962654]
[1754592957331,1.096,777.72,777.22,0.85962654]
[1754592957936,1.096,777.72,777.07,1.1493026]
[1754592957937,1.096,777.72,777.2,0.85962654]
[1754592961437,1.096,777.72,777.19,0.85962654]
[1754592962239,1.096,777.72,777.04,1.1493026]
[1754592962240,1.096,777.72,777.2,0.85962654]
[1754592962938,1.096,777.72,776.62,0.22382372]
[1754592962939,1.096,777.72,777.26,0.85962654]
[1754592964542,1.096,777.72,777.27,0.85962654]
[1754592964843,1.096,777.72,777.28,0.85962654]
[1754592965545,1.096,777.72,777.27,0.85962654]
[1754592966343,1.096,777.72,777.28,0.85962654]
[1754592966942,1.096,777.72,777.25,0.85962654]
[1754592967344,1.096,777.72,777.24,0.85962654]
[1754592968349,1.096,777.72,777.25,0.85962654]
[1754592968546,1.096,777.72,777.24,0.85962654]
[1754592969148,1.096,777.72,777.25,0.85962654]
[1754592970551,1.096,777.72,777.24,0.85962654]
[1754592970751,1.096,777.72,777.25,0.85962654]
[1754592970954,1.096,777.72,777.12,0.85962654]
[1754592977453,0.22376471,778.04,777.12,0.85962654]
[1754592977657,0.85538283,778.03,777.12,0.85962654]
[1754592977957,0.85538283,778.02,777.12,0.85962654]
[1754592978254,0.85538283,778.01,777.12,0.85962654]
[1754592978458,0.22376471,778.04,777.12,0.85962654]
[1754592978654,0.85539033,778.03,777.12,0.85962654]
[1754592978856,0.85539033,778.02,777.12,0.85962654]
[1754592979155,0.85539033,778.01,777.12,0.85962654]
[1754592979354,0.85539033,778.0,777.12,0.85962654]
[1754592979557,0.85539033,777.99,777.12,0.85962654]
[1754592979857,0.85539033,777.98,777.12,0.85962654]
[1754592980058,0.85539033,777.97,777.12,0.85962654]
[1754592980257,0.85539033,777.97,777.18,0.85962654]
[1754592980954,0.85539033,777.97,777.23,0.85962654]
[1754592981255,0.85539033,777.97,777.25,0.85962654]
[1754592981454,0.85544966,777.96,777.26,0.85962654]
[1754592981658,0.85544966,777.95,777.26,0.85962654]
[1754592981954,0.85544966,777.94,777.26,0.85962654]
[1754592982155,0.85544966,777.93,777.26,0.85962654]
[1754592982358,1.85448279,777.98,777.26,0.85962654]
[1754592982359,0.85544966,777.92,777.26,0.85962654]
[1754592982554,0.85544966,777.91,777.27,0.85962654]
[1754592982753,1.85448279,777.98,777.27,0.85962654]
[1754592982754,0.85544966,777.9,777.27,0.85962654]
[1754592982959,1.85448279,777.98,777.27,0.85962654]
[1754592982960,0.85544966,777.89,777.27,0.85962654]
[1754592983161,0.85544966,777.88,777.27,0.85962654]
[1754592983359,0.85544966,777.87,777.27,0.85962654]
[1754592983558,0.85544966,777.86,777.27,0.85962654]
[1754592983757,0.85544966,777.85,777.23,0.85962654]
[1754592983956,0.85544966,777.84,777.23,0.85962654]
[1754592984154,0.86348279,777.94,777.23,0.85962654]
[1754592984356,0.8555279,777.93,777.23,0.85962654]
[1754592984660,0.8555279,777.92,777.23,0.85962654]
[1754592986260,0.86348279,777.89,777.26,0.85962654]
[1754592986462,0.8555279,777.88,777.26,0.85962654]
[1754592987462,0.8555279,777.88,777.25,0.85962654]
[1754592987658,0.85565063,777.87,777.25,0.85962654]
[1754592987959,0.85565063,777.86,777.25,0.85962654]
[1754592988158,0.85565063,777.85,777.25,0.85962654]
[1754592988361,0.85565063,777.84,777.25,0.85962654]
[1754592988559,0.85565063,777.83,777.25,0.85962654]
[1754592988758,0.85565063,777.82,777.25,0.85962654]
[1754592989061,0.86348279,777.91,777.25,0.85962654]
[1754592989262,0.85566686,777.9,777.25,0.85962654]
[1754592989459,0.85566686,777.89,777.25,0.85962654]
[1754592989762,0.85566686,777.88,777.25,0.85962654]
[1754592989964,0.85566686,777.87,777.25,0.85962654]
[1754592990164,0.85566686,777.86,777.25,0.85962654]
[1754592990365,0.85566686,777.85,777.25,0.85962654]
[1754592990562,0.85566686,777.84,777.25,0.85962654]
[1754592990762,0.85566686,777.83,777.25,0.85962654]
[1754592990961,0.85566686,777.82,777.25,0.85962654]
[1754592991266,0.86348279,777.95,777.3,0.85962654]
[1754592991464,0.85573417,777.94,777.3,0.85962654]
[1754592991663,0.85573417,777.93,777.3,0.85962654]
[1754592991867,0.86348279,777.95,777.3,0.85962654]
[1754592991868,0.85573417,777.92,777.3,0.85962654]
[1754592992068,0.85573417,777.91,777.3,0.85962654]
[1754592992269,0.85573417,777.9,777.3,0.85962654]
[1754592992464,0.85573417,777.89,777.3,0.85962654]
[1754592992764,0.85573417,777.88,777.3,0.85962654]
[1754592992968,0.85573417,777.87,777.3,0.85962654]
[1754592993165,0.85573417,777.86,777.3,0.85962654]
[1754592993470,0.86348279,777.95,777.3,0.85962654]
[1754592993768,0.85579881,777.94,777.3,0.85962654]
[1754592993967,0.85579881,777.93,777.3,0.85962654]
[1754592994169,0.85579881,777.92,777.3,0.85962654]
[1754592994364,0.85579881,777.91,777.3,0.85962654]
[1754592994666,0.85579881,777.9,777.3,0.85962654]
[1754592994868,0.85579881,777.89,777.29,0.85962654]
[1754592995068,0.85579881,777.88,777.29,0.85962654]
[1754592995365,0.85579881,777.87,777.29,0.85962654]
[1754592995565,0.85579881,777.86,777.29,0.85962654]
[1754592995868,0.85579881,777.85,777.29,0.85962654]
[1754592996168,0.85579881,777.84,777.29,0.85962654]
[1754592996366,0.86348279,777.97,777.29,0.85962654]
[1754592996566,0.85593151,777.96,777.29,0.85962654]
[1754592996766,0.85593151,777.95,777.29,0.85962654]
[1754592996964,0.85593151,777.94,777.29,0.85962654]
[1754592997170,0.85593151,777.93,777.3,0.85962654]
[1754592997370,0.85593151,777.92,777.3,0.85962654]
[1754592997566,0.85593151,777.91,777.3,0.85962654]
[1754592997770,0.85593151,777.9,777.3,0.85962654]
[1754592997967,0.85593151,777.89,777.31,0.85962654]
[1754592998173,0.85593151,777.88,777.31,0.85962654]
[1754592998370,0.85593151,777.87,777.31,0.85962654]
[1754592998569,0.85593151,777.86,777.31,0.85962654]
[1754592998868,0.85593151,777.85,777.31,0.85962654]
[1754592999169,0.85593151,777.84,777.31,0.85962654]
[1754592999374,0.85593151,777.83,777.31,0.85962654]
[1754592999572,0.85593151,777.82,777.31,0.85962654]
[1754592999772,0.85593151,777.81,777.31,0.85962654]
[1754592999972,0.85593151,777.8,777.31,0.85962654]
[1754593000173,0.86348279,777.95,777.31,0.85962654]
[1754593000376,0.85612734,777.94,777.31,0.85962654]
[1754593000576,0.85612734,777.93,777.32,0.85962654]
[1754593000771,0.85612734,777.92,777.32,0.85962654]
[1754593000976,0.85612734,777.91,777.33,0.85962654]
[1754593001172,0.85612734,777.9,777.33,0.85962654]
[1754593001478,0.85612734,777.89,777.33,0.85962654]
[1754593001675,0.85612734,777.88,777.33,0.85962654]
[1754593001877,0.85612734,777.87,777.33,0.85962654]
[1754593002074,0.85612734,777.86,777.33,0.85962654]
[1754593002274,0.85612734,777.85,777.33,0.85962654]
[1754593002577,0.85612734,777.84,777.33,0.85962654]
[1754593002777,0.85612734,777.83,777.33,0.85962654]
[1754593002972,0.85612734,777.82,777.33,0.85962654]
[1754593003175,0.85612734,777.81,777.33,0.85962654]
[1754593003375,0.85612734,777.8,777.33,0.85962654]
[1754593003672,0.86348279,777.97,777.35,0.85962654]
[1754593003875,0.85642547,777.96,777.35,0.85962654]
[1754593004075,0.85642547,777.95,777.35,0.85962654]
[1754593004271,0.85642547,777.94,777.35,0.85962654]
[1754593004474,0.85642547,777.93,777.35,0.85962654]
[1754593004677,0.85642547,777.92,777.35,0.85962654]
[1754593004979,0.85642547,777.91,777.36,0.85962654]
[1754593005173,0.85642547,777.9,777.36,0.85962654]
[1754593005374,0.991,777.98,776.62,0.22382372]
[1754593005375,0.85660955,777.89,777.35,0.85962654]
[1754593005577,0.85660955,777.88,777.33,0.85962654]
[1754593005778,0.85660955,777.87,777.33,0.85962654]
[1754593005976,0.85660464,777.86,777.33,0.85962654]
[1754593006180,0.85660464,777.85,777.33,0.85962654]
[1754593006479,0.85660464,777.84,777.33,0.85962654]
[1754593006780,0.85660464,777.83,777.33,0.85962654]
[1754593006976,0.85660464,777.82,777.33,0.85962654]
[1754593007180,0.86348279,778.0,777.33,0.85962654]
[1754593007380,0.85685575,777.99,777.33,0.85962654]
[1754593007578,0.85685575,777.98,777.33,0.85962654]
[1754593007777,0.85685575,777.97,777.33,0.85962654]
[1754593007980,0.85685575,777.96,777.33,0.85962654]
[1754593008177,0.85685575,777.95,777.33,0.85962654]
[1754593008378,0.85685575,777.94,777.33,0.85962654]
[1754593008581,0.85685575,777.93,777.34,0.85962654]
[1754593008780,0.85685575,777.92,777.34,0.85962654]
[1754593008978,0.85685575,777.91,777.34,0.85962654]
[1754593009182,0.85685575,777.9,777.34,0.85962654]
[1754593009381,1.79385575,777.89,777.35,0.85962654]
[1754593009577,0.85685575,777.88,777.35,0.85962654]
[1754593009883,0.85685575,777.88,777.37,0.85962654]
[1754593010378,0.85685575,777.88,777.38,0.85962654]
[1754593010583,0.85685575,777.88,777.37,0.85962654]
[1754593011482,0.85685575,777.88,777.38,0.85962654]
[1754593012179,0.85685575,777.88,777.37,0.85962654]
[1754593013983,0.85685575,777.88,776.62,0.22382372]
[1754593013984,0.85685575,777.88,777.38,0.85962654]
[1754593014180,0.85685575,777.88,777.39,0.85962654]
[1754593014380,0.85753749,777.87,777.39,0.85962654]
[1754593014584,0.85753749,777.86,777.39,0.85962654]
[1754593014786,0.937,777.89,777.39,0.85962654]
[1754593014987,0.85753072,777.88,777.39,0.85962654]
[1754593015182,0.85753072,777.87,777.39,0.85962654]
[1754593015381,0.85753072,777.86,777.4,0.85962654]
[1754593015587,0.85753072,777.85,777.4,0.85962654]
[1754593015887,0.85753072,777.84,777.4,0.85962654]
[1754593016085,0.85753072,777.83,777.4,0.85962654]
[1754593016383,0.85753072,777.82,777.4,0.85962654]
[1754593016583,0.85753072,777.81,777.4,0.85962654]
[1754593016782,0.85753072,777.8,777.4,0.85962654]
[1754593016983,0.85753072,777.79,777.4,0.85962654]
[1754593017187,0.85753072,777.78,777.4,0.85962654]
[1754593017386,0.937,777.89,777.4,0.85962654]
[1754593017585,0.85761184,777.88,777.4,0.85962654]
[1754593017783,0.85761184,777.87,777.4,0.85962654]
[1754593017983,0.85761184,777.86,777.4,0.85962654]
[1754593018184,0.85761184,777.85,777.4,0.85962654]
[1754593018386,0.85761184,777.84,777.4,0.85962654]
[1754593018586,0.85761184,777.83,777.4,0.85962654]
[1754593018787,0.85761184,777.82,777.4,0.85962654]
[1754593018985,0.85761184,777.81,777.4,0.85962654]
[1754593019286,0.85761184,777.8,777.41,0.85962654]
[1754593019485,0.85761184,777.79,777.4,0.85962654]
[1754593019688,0.937,777.89,777.41,0.85962654]
[1754593019886,0.85758127,777.88,777.41,0.85962654]
[1754593020086,0.85758127,777.87,777.41,0.85962654]
[1754593020284,0.85758127,777.86,777.45,0.85962654]
[1754593020488,0.85758127,777.85,777.48,0.85962654]
[1754593020787,0.85758127,777.84,777.48,0.85962654]
[1754593020990,0.85758127,777.83,777.48,0.85962654]
[1754593021191,0.85758127,777.82,777.48,0.85962654]
[1754593021388,0.85758127,777.81,777.48,0.85962654]
[1754593021593,0.937,777.89,777.49,0.85962654]
[1754593021789,0.85750634,777.88,777.49,0.85962654]
[1754593022093,0.937,777.89,777.48,0.85962654]
[1754593022292,0.85746224,777.88,777.48,0.85962654]
[1754593022593,0.85746224,777.87,777.48,0.85962654]
[1754593022787,0.85746224,777.86,777.48,0.85962654]
[1754593022992,0.85746224,777.85,777.49,0.85962654]
[1754593023188,0.85746224,777.84,777.48,0.85962654]
[1754593023392,0.85746224,777.83,777.48,0.85962654]
[1754593023593,0.85746224,777.82,777.48,0.85962654]
[1754593023790,0.937,777.89,777.47,0.85962654]
[1754593023992,0.8574225,777.88,777.47,0.85962654]
[1754593024194,0.8574225,777.87,777.47,0.85962654]
[1754593024392,0.8574225,777.86,777.47,0.85962654]
[1754593024590,0.8574225,777.85,777.47,0.85962654]
[1754593024795,0.8574225,777.84,777.47,0.85962654]
[1754593025096,0.8574225,777.83,777.47,0.85962654]
[1754593025294,0.937,777.89,777.46,0.85962654]
[1754593025496,0.85735726,777.88,777.46,0.85962654]
[1754593025691,0.85735726,777.87,777.46,0.85962654]
[1754593025892,0.85735726,777.86,777.46,0.85962654]
[1754593026097,0.85735726,777.85,777.46,0.85962654]
[1754593026397,0.85735726,777.84,777.46,0.85962654]
[1754593026595,0.85735726,777.83,777.46,0.85962654]
[1754593026794,0.937,777.89,777.46,0.85962654]
[1754593026994,0.85732891,777.88,777.46,0.85962654]
[1754593027193,0.85732891,777.87,777.46,0.85962654]
[1754593027396,0.85732891,777.86,777.46,0.85962654]
[1754593027695,0.85732891,777.85,777.46,0.85962654]
[1754593027893,0.85732891,777.84,777.46,0.85962654]
[1754593028095,0.85732891,777.83,777.46,0.85962654]
[1754593028395,0.85737243,777.82,777.45,0.85962654]
[1754593028695,0.937,777.89,777.45,0.85962654]
[1754593028899,0.85737243,777.88,777.46,0.85962654]
[1754593029101,0.85737243,777.87,777.46,0.85962654]
[1754593029295,0.85737243,777.86,777.46,0.85962654]
[1754593029596,0.85737243,777.85,777.46,0.85962654]
[1754593029798,0.85737243,777.84,777.46,0.85962654]
[1754593030101,0.85737243,777.83,777.46,0.85962654]
[1754593030299,0.85737243,777.82,777.46,0.85962654]
[1754593030498,0.85737243,777.81,777.46,0.85962654]
[1754593030699,0.937,777.89,777.46,0.85962654]
[1754593030897,0.85744197,777.88,777.46,0.85962654]
[1754593031096,0.85744192,777.87,777.46,0.85962654]
[1754593031302,0.85744192,777.86,777.46,0.85962654]
[1754593031599,0.85744192,777.85,777.46,0.85962654]
[1754593031797,0.85744192,777.84,777.46,0.85962654]
[1754593032099,0.85744192,777.83,777.46,0.85962654]
[1754593032299,0.85744192,777.83,776.62,0.22382372]
[1754593032300,0.85744192,777.82,777.45,0.85962654]
[1754593032595,0.937,777.89,777.45,0.85962654]
[1754593032795,0.85741002,777.88,777.45,0.85962654]
[1754593033105,0.85741002,777.87,777.46,0.85962654]
[1754593033295,0.85741002,777.86,777.45,0.85962654]
[1754593033499,0.85741002,777.85,777.45,0.85962654]
[1754593033702,0.85741002,777.84,777.46,0.85962654]
[1754593033901,0.85741002,777.83,777.46,0.85962654]
[1754593034098,0.85741002,777.82,777.46,0.85962654]
[1754593034401,0.85741002,777.81,777.46,0.85962654]
[1754593034601,0.937,777.89,777.45,0.85962654]
[1754593034901,0.85738277,777.88,777.45,0.85962654]
[1754593035197,0.85738277,777.87,777.45,0.85962654]
[1754593035396,0.85738277,777.86,777.45,0.85962654]
[1754593035599,0.85738277,777.85,777.44,0.85962654]
[1754593035797,0.937,777.89,777.44,0.85962654]
[1754593035798,0.85738277,777.84,777.44,0.85962654]
[1754593036097,0.85738277,777.83,777.44,0.85962654]
[1754593036397,0.85738277,777.82,777.44,0.85962654]
[1754593036700,0.937,777.89,777.44,0.85962654]
[1754593036900,0.85736812,777.88,777.44,0.85962654]
[1754593037098,0.85736812,777.87,777.44,0.85962654]
[1754593037300,0.85736812,777.86,777.44,0.85962654]
[1754593037501,0.85736812,777.85,777.44,0.85962654]
[1754593037698,0.85736812,777.84,777.44,0.85962654]
[1754593037999,0.85736812,777.83,777.44,0.85962654]
[1754593038199,0.85736812,777.82,777.44,0.85962654]
[1754593038403,0.86348279,778.1,777.44,0.85962654]
[1754593038597,0.85735915,778.09,777.44,0.85962654]
[1754593038802,0.85735915,778.08,777.44,0.85962654]
[1754593038998,0.85735915,778.07,777.44,0.85962654]
[1754593039202,0.85735915,778.06,777.44,0.85962654]
[1754593039499,0.85735915,778.05,777.44,0.85962654]
[1754593039702,0.85735915,778.04,777.42,0.85962654]
[1754593039901,0.905,778.08,777.42,0.85962654]
[1754593040102,0.85735983,778.07,777.42,0.85962654]
[1754593040299,0.85735983,778.06,777.42,0.85962654]
[1754593040616,0.85735983,778.05,777.42,0.85962654]
[1754593040901,0.85735983,778.04,777.41,0.85962654]
[1754593041104,0.85735983,778.03,777.41,0.85962654]
[1754593041299,0.85735983,778.02,777.41,0.85962654]
[1754593041501,0.85735983,778.01,777.41,0.85962654]
[1754593041705,0.85735983,778.0,777.41,0.85962654]
[1754593042001,0.85735983,777.99,777.41,0.85962654]
[1754593042204,0.85735983,777.98,777.42,0.85962654]
[1754593042499,0.905,778.08,777.42,0.85962654]
[1754593042500,0.85735983,777.97,777.42,0.85962654]
[1754593042704,0.85735983,777.96,777.42,0.85962654]
[1754593042899,0.85735983,777.95,777.42,0.85962654]
[1754593043101,0.85735983,777.94,777.42,0.85962654]
[1754593043402,0.85735983,777.93,777.42,0.85962654]
[1754593043602,0.85735983,777.92,777.42,0.85962654]
[1754593043800,0.85735983,777.91,777.42,0.85962654]
[1754593044005,0.905,778.08,777.42,0.85962654]
[1754593044006,0.85735983,777.9,777.42,0.85962654]
[1754593044204,0.85735983,777.89,777.42,0.85962654]
[1754593044505,0.85735983,777.88,777.42,0.85962654]
[1754593044701,0.85735983,777.87,777.42,0.85962654]
[1754593044903,0.85735983,777.86,777.42,0.85962654]
[1754593045104,0.85735983,777.85,777.42,0.85962654]
[1754593045305,0.85735983,777.84,777.42,0.85962654]
[1754593045504,0.85735983,777.83,777.42,0.85962654]
[1754593045700,0.905,778.08,777.42,0.85962654]
[1754593045701,0.85735983,777.82,777.42,0.85962654]
[1754593046002,0.86348279,777.99,777.29,0.85962654]
[1754593046206,0.8573924,777.98,777.29,0.85962654]
[1754593046407,0.8573924,777.97,777.3,0.85962654]
[1754593046606,0.8573924,777.96,777.3,0.85962654]
[1754593046808,0.8573924,777.95,777.27,0.85962654]
[1754593047106,1.72087519,777.95,777.26,0.85962654]
[1754593047303,0.8573924,777.94,777.26,0.85962654]
[1754593048009,0.8573924,777.94,777.36,0.85962654]
[1754593048209,0.8573924,777.93,777.36,0.85962654]
[1754593048409,0.8573924,777.92,777.36,0.85962654]
[1754593048614,0.8573924,777.91,777.36,0.85962654]
[1754593048812,0.8573924,777.9,777.36,0.85962654]
[1754593049012,0.86348279,778.04,777.36,0.85962654]
[1754593049311,0.85729323,778.03,777.36,0.85962654]
[1754593049512,0.85729323,778.02,777.36,0.85962654]
[1754593049711,0.85729323,778.01,777.36,0.85962654]
[1754593049912,0.85729323,778.0,777.36,0.85962654]
[1754593050110,0.85729323,777.99,777.36,0.85962654]
[1754593050411,0.85729323,777.98,777.36,0.85962654]
[1754593050614,0.85729323,777.97,777.37,0.85962654]
[1754593050813,0.85729323,777.96,777.37,0.85962654]
[1754593051011,0.85729323,777.95,777.37,0.85962654]
[1754593051211,0.85729323,777.94,777.36,0.85962654]
[1754593051415,0.85729323,777.93,777.36,0.85962654]
[1754593051616,0.85729323,777.92,777.36,0.85962654]
[1754593051916,0.85729323,777.91,777.36,0.85962654]
[1754593052117,0.85729323,777.9,777.36,0.85962654]
[1754593052310,0.85717023,777.89,777.36,0.85962654]
[1754593052512,0.86348279,778.04,777.36,0.85962654]
[1754593052712,0.85717033,778.03,777.36,0.85962654]
[1754593052911,0.85717033,778.02,777.36,0.85962654]
[1754593053111,0.85717033,778.01,777.36,0.85962654]
[1754593053313,0.85717033,778.0,777.36,0.85962654]
[1754593053516,0.85717033,777.99,777.36,0.85962654]
[1754593053714,0.85717033,777.98,777.36,0.85962654]
[1754593053917,0.85717033,777.97,777.36,0.85962654]
[1754593054217,0.85717033,777.96,777.36,0.85962654]
[1754593054420,0.85717033,777.95,777.36,0.85962654]
[1754593054617,0.85717033,777.94,777.36,0.85962654]
[1754593054816,0.85717033,777.93,777.36,0.85962654]
[1754593055015,0.85717033,777.92,777.39,0.85962654]
[1754593055220,0.85717033,777.91,777.39,0.85962654]
[1754593055515,0.85717033,777.9,777.39,0.85962654]
[1754593055723,0.85717033,777.89,777.39,0.85962654]
[1754593055928,0.85717033,777.88,777.39,0.85962654]
[1754593056129,0.86348279,777.99,777.39,0.85962654]
[1754593056323,0.85704835,777.98,777.39,0.85962654]
[1754593056528,0.85704835,777.97,777.39,0.85962654]
[1754593056727,0.85704835,777.96,777.39,0.85962654]
[1754593056929,0.85704835,777.95,777.39,0.85962654]
[1754593057226,0.85704835,777.94,777.39,0.85962654]
[1754593057431,0.85704835,777.93,777.4,0.85962654]
[1754593057623,0.85704835,777.92,777.4,0.85962654]
[1754593057927,0.86348279,777.99,777.39,0.85962654]
[1754593058131,0.85705044,777.98,777.39,0.85962654]
[1754593058327,0.85705044,777.97,777.4,0.85962654]
[1754593058527,0.85704074,777.96,777.4,0.85962654]
[1754593058829,0.85704074,777.95,777.4,0.85962654]
[1754593059130,0.85704074,777.94,777.39,0.85962654]
[1754593059324,0.85704074,777.93,777.4,0.85962654]
[1754593059626,0.85704074,777.92,777.4,0.85962654]
[1754593059830,0.85704074,777.91,777.4,0.85962654]
[1754593060028,0.85704074,777.9,777.39,0.85962654]
[1754593060227,0.85704074,777.9,776.62,0.22382372]
[1754593060228,0.85704074,777.89,777.4,0.85962654]
[1754593060434,0.85704074,777.88,777.4,0.85962654]
[1754593060632,0.86348279,777.98,777.4,0.85962654]
[1754593060829,0.85704326,777.97,777.4,0.85962654]
[1754593061034,0.86348279,777.95,777.42,0.85962654]
[1754593061233,0.85704032,777.94,777.42,0.85962654]
[1754593061535,0.85704032,777.93,777.42,0.85962654]
[1754593061829,0.85704032,777.92,777.42,0.85962654]
[1754593062033,0.85704032,777.91,777.42,0.85962654]
[1754593062335,0.85704032,777.9,777.42,0.85962654]
[1754593062534,0.85704032,777.89,777.42,0.85962654]
[1754593062729,0.85704032,777.88,777.42,0.85962654]
[1754593062930,0.85704032,777.87,777.42,0.85962654]
[1754593063230,0.86348279,777.96,777.42,0.85962654]
[1754593063434,0.85702691,777.95,777.42,0.85962654]
[1754593063733,0.85702691,777.94,777.42,0.85962654]
[1754593063931,0.86348279,777.96,777.42,0.85962654]
[1754593064131,0.857027,777.95,777.42,0.85962654]
[1754593064434,0.857027,777.94,777.42,0.85962654]
[1754593064632,0.857027,777.93,777.42,0.85962654]
[1754593064832,0.857027,777.92,777.42,0.85962654]
[1754593065030,0.905,778.08,776.62,0.22382372]
[1754593065031,0.857027,777.91,777.4,0.85962654]
[1754593065234,0.857027,777.9,777.4,0.85962654]
[1754593065535,0.857027,777.89,777.4,0.85962654]
[1754593065732,0.857027,777.88,777.4,0.85962654]
[1754593065934,0.86348279,777.98,777.4,0.85962654]
[1754593066132,0.85702254,777.97,777.4,0.85962654]
[1754593066432,0.85702254,777.96,777.4,0.85962654]
[1754593066634,0.85702254,777.95,777.4,0.85962654]
[1754593066932,0.86348279,777.98,777.4,0.85962654]
[1754593067135,0.85701546,777.97,777.4,0.85962654]
[1754593067335,0.85701546,777.96,777.4,0.85962654]
[1754593067635,0.85701546,777.95,777.41,0.85962654]
[1754593067932,0.85701546,777.94,777.41,0.85962654]
[1754593068135,0.85701546,777.93,777.41,0.85962654]
[1754593068334,0.85701546,777.92,777.41,0.85962654]
[1754593068534,0.85701546,777.91,777.41,0.85962654]